[Event "9th RTU Rapid 2019"]
[Site "Riga"]
[Date "2019.08.04"]
[Round "7.2"]
[White "Pultinevicius, Paulius"]
[Black "Korchmar, Vasiliy"]
[Result "1-0"]
[WhiteElo "2501"]
[BlackElo "2413"]
[PlyCount "65"]
[EventDate "2019.08.05"]
[EventType "swiss"]
[EventCountry "LAT"]
[TimeControl "5400+30"]
[WhiteClock "0:00:08"]
[BlackClock "0:00:30"]

1. d4 {[%emt 1:15:21]} Nf6 {[%emt 1:15:22]} 2. c4 {[%emt 0:00:26]} e6 {[%emt 0:00:26]} 3. Nf3 {[%emt 0:00:26]} d5 {[%emt 0:00:26]} 4. Nc3 {[%emt 0:00:26]} Bb4 {[%emt 0:00:26]} 5. Qa4+ {[%emt 0:00:42]} Nc6 {[%emt 0:00:26]} 6. e3 {[%emt 0:00:26]} O-O {[%emt 0:00:36]} 7. Bd2 {[%emt 0:00:30]} dxc4 {[%emt 0:00:45]} 8. Bxc4 {[%emt 0:00:28]} Bd6 {[%emt 0:00:26]} 9. O-O {[%emt 0:00:49]} e5 {[%emt 0:00:40]} 10. h3 {[%emt 0:01:41]} e4 {[%emt 0:02:40]} 11. Ng5 {[%emt 0:01:39]} Bf5 {[%emt 0:02:51]} 12. Qc2 {[%emt 0:02:50]} Bb4 {[%emt 0:06:46]} 13. Nxf7 {[%emt 0:04:47]} Rxf7 {[%emt 0:00:28]} 14. Qb3 {[%emt 0:02:00]} Bg6 {[%emt 0:00:27]} 15. Nxe4 {[%emt 0:00:59]} Nxe4 {[%emt 0:01:18]} 16. Bxb4 {[%emt 0:00:26]} Nxb4 {[%emt 0:00:49]} 17. Qxb4 {[%emt 0:00:40]} Nd6 {[%emt 0:00:30]} 18. Bxf7+ {[%emt 0:00:29]} Bxf7 {[%emt 0:00:27]} 19. Rfe1 {[%emt 0:00:53]} Bg6 {[%emt 0:01:40]} 20. f3 {[%emt 0:00:31]} c6 {[%emt 0:00:29]} 21. e4 {[%emt 0:00:46]} a5 {[%emt 0:00:26]} 22. Qc5 {[%emt 0:00:34]} a4 {[%emt 0:00:49]} 23. Rad1 {[%emt 0:00:40]} Ra5 {[%emt 0:00:27]} 24. Qc3 {[%emt 0:00:45]} Bf7 {[%emt 0:00:46]} 25. Kh1 {[%emt 0:02:08]} Bxa2 {[%emt 0:01:00]} 26. d5 {[%emt 0:00:26]} cxd5 {[%emt 0:00:27]} 27. exd5 {[%emt 0:00:32]} Bb3 {[%emt 0:00:33]} 28. Rd2 {[%emt 0:00:33]} Ra8 {[%emt 0:00:30]} 29. Rde2 {[%emt 0:00:42]} Qg5 {[%emt 0:01:14]} 30. Re5 {[%emt 0:00:52]} Qg3 {[%emt 0:00:32]} 31. Qc7 {[%emt 0:00:32]} Qg6 {[%emt 0:00:41]} 32. Re6 {[%emt 0:00:29]} Nb5 {[%emt 0:00:29]} 33. Qxb7 {[%emt 0:00:32]} 1-0

[Event "9th RTU Rapid 2019"]
[Site "Riga"]
[Date "2019.08.04"]
[Round "7.3"]
[White "Galchenko, Matvey"]
[Black "Kantans, Toms"]
[Result "1-0"]
[WhiteElo "2360"]
[BlackElo "2471"]
[PlyCount "95"]
[EventDate "2019.08.05"]
[EventType "swiss"]
[EventCountry "LAT"]
[TimeControl "5400+30"]
[WhiteClock "0:00:10"]
[BlackClock "0:01:21"]

1. c4 {[%emt 1:15:28]} e5 {[%emt 1:15:24]} 2. g3 {[%emt 0:00:27]} Nc6 {[%emt 0:00:27]} 3. Bg2 {[%emt 0:00:26]} Bc5 {[%emt 0:00:26]} 4. Nc3 {[%emt 0:00:26]} d6 {[%emt 0:00:27]} 5. e3 {[%emt 0:00:49]} a6 {[%emt 0:00:26]} 6. Nge2 {[%emt 0:00:27]} Ba7 {[%emt 0:00:26]} 7. Rb1 {[%emt 0:00:59]} h5 {[%emt 0:00:28]} 8. h4 {[%emt 0:00:34]} Bg4 {[%emt 0:00:37]} 9. b4 {[%emt 0:00:31]} Qd7 {[%emt 0:00:25]} 10. Qa4 {[%emt 0:02:20]} Nge7 {[%emt 0:01:08]} 11. b5 {[%emt 0:00:35]} axb5 {[%emt 0:00:40]} 12. cxb5 {[%emt 0:00:27]} Nd8 {[%emt 0:00:57]} 13. b6 {[%emt 0:00:37]} cxb6 {[%emt 0:01:22]} 14. Qxd7+ {[%emt 0:00:42]} Kxd7 {[%emt 0:01:18]} 15. d4 {[%emt 0:01:28]} Ndc6 {[%emt 0:02:03]} 16. d5 {[%emt 0:01:00]} Na5 {[%emt 0:00:39]} 17. f3 {[%emt 0:01:33]} Bf5 {[%emt 0:00:26]} 18. e4 {[%emt 0:00:26]} Bh7 {[%emt 0:00:26]} 19. Bh3+ {[%emt 0:00:31]} f5 {[%emt 0:00:26]} 20. Bg5 {[%emt 0:00:31]} Rhf8 {[%emt 0:01:52]} 21. Nb5 {[%emt 0:00:40]} Bb8 {[%emt 0:00:58]} 22. Rb4 {[%emt 0:00:43]} Ke8 {[%emt 0:01:43]} 23. Kd2 {[%emt 0:00:55]} fxe4 {[%emt 0:00:33]} 24. fxe4 {[%emt 0:00:26]} Nac6 {[%emt 0:01:14]} 25. dxc6 {[%emt 0:00:33]} Rxa2+ {[%emt 0:00:27]} 26. Ke3 {[%emt 0:02:05]} bxc6 {[%emt 0:00:27]} 27. Nbc3 {[%emt 0:00:31]} Ra3 {[%emt 0:00:26]} 28. Rc1 {[%emt 0:01:54]} d5 {[%emt 0:02:28]} 29. Bxe7 {[%emt 0:02:03]} d4+ {[%emt 0:02:57]} 30. Nxd4 {[%emt 0:00:29]} exd4+ {[%emt 0:00:26]} 31. Rxd4 {[%emt 0:00:26]} Kxe7 {[%emt 0:00:26]} 32. Rd7+ {[%emt 0:00:26]} Ke8 {[%emt 0:00:28]} 33. Rxg7 {[%emt 0:00:49]} Rf7 {[%emt 0:00:26]} 34. Rg5 {[%emt 0:01:32]} Bd6 {[%emt 0:01:02]} 35. Ke2 {[%emt 0:00:51]} Bb4 {[%emt 0:01:30]} 36. Nb1 {[%emt 0:01:35]} Ra2+ {[%emt 0:00:41]} 37. Ke3 {[%emt 0:00:39]} Bc5+ {[%emt 0:01:19]} 38. Rcxc5 {[%emt 0:00:38]} bxc5 {[%emt 0:00:26]} 39. Be6 {[%emt 0:00:26]} Rc2 {[%emt 0:00:38]} 40. Bxf7+ {[%emt 0:00:44]} Kxf7 {[%emt 0:00:50]} 41. Rxh5 {[%emt 0:00:26]} Bg6 {[%emt 0:00:26]} 42. Rg5 {[%emt 0:00:28]} Rc4 {[%emt 0:00:39]} 43. Nd2 {[%emt 0:00:11]} Rc3+ 44. Kf4 {[%emt 0:00:50]} Bh7 {[%emt 0:01:00]} 45. Nf3 {[%emt 0:00:34]} Kf6 {[%emt 0:00:29]} 46. Ne5 {[%emt 0:00:34]} Rc1 {[%emt 0:00:31]} 47. Nd7+ {[%emt 0:00:28]} Ke7 {[%emt 0:00:27]} 48. Rg7+ {[%emt 0:00:26]} 1-0

[Event "9th RTU Rapid 2019"]
[Site "Riga"]
[Date "2019.08.04"]
[Round "7.4"]
[White "Vishnu Prasanna. V"]
[Black "Gagare, Shardul"]
[Result "0-1"]
[WhiteElo "2465"]
[BlackElo "2430"]
[PlyCount "104"]
[EventDate "2019.08.05"]
[EventType "swiss"]
[EventCountry "LAT"]
[TimeControl "5400+30"]
[WhiteClock "0:03:50"]
[BlackClock "0:00:37"]

1. e4 {[%emt 1:15:23]} e5 {[%emt 1:15:23]} 2. Nf3 {[%emt 0:00:27]} Nc6 {[%emt 0:00:26]} 3. Bb5 {[%emt 0:00:27]} a6 {[%emt 0:00:26]} 4. Ba4 {[%emt 0:00:27]} Nf6 {[%emt 0:00:27]} 5. d3 {[%emt 0:00:30]} b5 {[%emt 0:00:32]} 6. Bb3 {[%emt 0:00:27]} Be7 {[%emt 0:00:28]} 7. O-O {[%emt 0:00:42]} d6 {[%emt 0:00:26]} 8. c3 {[%emt 0:00:27]} O-O {[%emt 0:00:31]} 9. Re1 {[%emt 0:00:44]} Na5 {[%emt 0:01:11]} 10. Bc2 {[%emt 0:00:27]} c5 {[%emt 0:00:26]} 11. a4 {[%emt 0:00:32]} Rb8 {[%emt 0:00:50]} 12. axb5 {[%emt 0:00:44]} axb5 {[%emt 0:00:27]} 13. d4 {[%emt 0:00:28]} exd4 {[%emt 0:00:43]} 14. cxd4 {[%emt 0:00:27]} Nc6 {[%emt 0:00:32]} 15. e5 {[%emt 0:01:48]} dxe5 {[%emt 0:00:29]} 16. dxe5 {[%emt 0:00:27]} Nd5 {[%emt 0:01:03]} 17. Be4 {[%emt 0:02:18]} Be6 {[%emt 0:00:27]} 18. Qc2 {[%emt 0:00:29]} g6 {[%emt 0:00:29]} 19. Qd2 {[%emt 0:00:32]} Re8 {[%emt 0:00:44]} 20. Rd1 {[%emt 0:01:19]} Ndb4 {[%emt 0:00:47]} 21. Qe2 {[%emt 0:00:28]} Nd4 {[%emt 0:01:30]} 22. Nxd4 {[%emt 0:00:55]} cxd4 {[%emt 0:00:27]} 23. Na3 {[%emt 0:00:28]} Qb6 {[%emt 0:00:37]} 24. Bd2 {[%emt 0:01:06]} Bc5 {[%emt 0:01:49]} 25. Qf3 {[%emt 0:01:14]} Rbc8 {[%emt 0:01:46]} 26. Bxb4 {[%emt 0:01:22]} Bxb4 {[%emt 0:00:28]} 27. Nc2 {[%emt 0:00:27]} Bc5 {[%emt 0:00:31]} 28. b4 {[%emt 0:01:56]} Bf8 {[%emt 0:00:29]} 29. Nxd4 {[%emt 0:00:28]} Bc4 {[%emt 0:00:27]} 30. Nc6 {[%emt 0:02:36]} Re6 {[%emt 0:00:29]} 31. Na5 {[%emt 0:02:46]} Rxe5 {[%emt 0:00:39]} 32. Nxc4 {[%emt 0:00:28]} bxc4 {[%emt 0:00:27]} 33. Rd5 {[%emt 0:01:03]} Re6 {[%emt 0:00:59]} 34. b5 {[%emt 0:00:41]} Rf6 {[%emt 0:00:31]} 35. Qe2 {[%emt 0:00:27]} Bc5 {[%emt 0:00:30]} 36. Bf3 {[%emt 0:00:30]} Qxb5 {[%emt 0:00:52]} 37. Rc1 {[%emt 0:00:26]} Re6 {[%emt 0:00:29]} 38. Qc2 {[%emt 0:00:28]} c3 {[%emt 0:01:44]} 39. h4 {[%emt 0:00:40]} Qb2 {[%emt 0:01:07]} 40. Rdd1 {[%emt 0:00:44]} Rb8 {[%emt 0:01:31]} 41. Kf1 {[%emt 0:01:00]} Ba3 {[%emt 0:01:14]} 42. Qxb2 {[%emt 0:00:35]} cxb2 {[%emt 0:00:27]} 43. Rb1 {[%emt 0:00:27]} Rc8 {[%emt 0:00:27]} 44. Bg4 {[%emt 0:00:51]} f5 {[%emt 0:00:34]} 45. Bf3 {[%emt 0:00:26]} Kh8 {[%emt 0:00:45]} 46. Bd5 {[%emt 0:00:33]} Re7 {[%emt 0:00:43]} 47. Ba2 {[%emt 0:00:29]} Rc2 {[%emt 0:00:28]} 48. Bb3 {[%emt 0:00:39]} Rc1 {[%emt 0:00:36]} 49. g3 {[%emt 0:00:35]} Rd7 {[%emt 0:01:22]} 50. Re1 {[%emt 0:00:32]} Rd2 {[%emt 0:00:27]} 51. Kg2 {[%emt 0:00:31]} Rxb1 {[%emt 0:00:33]} 52. Rxb1 {[%emt 0:00:27]} Bc5 {[%emt 0:00:25]} 0-1

[Event "9th RTU Rapid 2019"]
[Site "Riga"]
[Date "2019.08.04"]
[Round "7.5"]
[White "Lavendelis, Egons"]
[Black "Krivonosov, Oleg"]
[Result "0-1"]
[WhiteElo "2292"]
[BlackElo "2445"]
[PlyCount "90"]
[EventDate "2019.08.05"]
[EventType "swiss"]
[EventCountry "LAT"]
[TimeControl "5400+30"]
[WhiteClock "0:08:38"]
[BlackClock "0:01:43"]

1. Nf3 {[%emt 1:15:23]} Nf6 {[%emt 1:15:23]} 2. g3 {[%emt 0:00:27]} d5 {[%emt 0:00:49]} 3. Bg2 {[%emt 0:00:28]} e6 {[%emt 0:00:26]} 4. O-O {[%emt 0:00:28]} Be7 {[%emt 0:00:26]} 5. d4 {[%emt 0:00:28]} O-O {[%emt 0:00:26]} 6. b3 {[%emt 0:00:28]} c5 {[%emt 0:00:30]} 7. Bb2 {[%emt 0:00:33]} b6 {[%emt 0:00:29]} 8. c4 {[%emt 0:00:43]} Bb7 {[%emt 0:00:26]} 9. Ne5 {[%emt 0:01:22]} Nbd7 {[%emt 0:00:41]} 10. Nd2 {[%emt 0:00:49]} cxd4 {[%emt 0:00:41]} 11. Bxd4 {[%emt 0:00:42]} Nxe5 {[%emt 0:00:40]} 12. Bxe5 {[%emt 0:00:29]} Rc8 {[%emt 0:00:35]} 13. Rc1 {[%emt 0:01:22]} Qd7 {[%emt 0:00:47]} 14. cxd5 {[%emt 0:00:40]} Rxc1 {[%emt 0:00:40]} 15. Qxc1 {[%emt 0:00:27]} Bxd5 {[%emt 0:00:38]} 16. e4 {[%emt 0:00:52]} Bb7 {[%emt 0:00:51]} 17. Re1 {[%emt 0:05:29]} Ng4 {[%emt 0:01:42]} 18. Bb2 {[%emt 0:01:28]} Bc5 {[%emt 0:00:45]} 19. Re2 {[%emt 0:02:00]} Ba6 {[%emt 0:00:52]} 20. Nc4 {[%emt 0:00:27]} Bxc4 {[%emt 0:00:49]} 21. bxc4 {[%emt 0:01:09]} Rd8 {[%emt 0:01:16]} 22. Qg5 {[%emt 0:01:13]} e5 {[%emt 0:00:29]} 23. Bh3 {[%emt 0:00:53]} Nxf2 {[%emt 0:01:23]} 24. Bxd7 {[%emt 0:00:57]} Nxe4+ {[%emt 0:01:25]} 25. Qe3 {[%emt 0:01:10]} Rxd7 {[%emt 0:00:27]} 26. Qxc5 {[%emt 0:00:28]} Nxc5 {[%emt 0:00:27]} 27. Rxe5 {[%emt 0:00:30]} f6 {[%emt 0:00:28]} 28. Re2 {[%emt 0:00:29]} Kf7 {[%emt 0:00:30]} 29. Ba3 {[%emt 0:00:29]} Ne6 {[%emt 0:00:39]} 30. Kf2 {[%emt 0:00:31]} h5 {[%emt 0:00:39]} 31. Ke3 {[%emt 0:00:30]} Rc7 {[%emt 0:00:48]} 32. Kd3 {[%emt 0:00:29]} Nc5+ {[%emt 0:00:28]} 33. Bxc5 {[%emt 0:00:41]} Rxc5 {[%emt 0:00:27]} 34. Kd4 {[%emt 0:00:28]} g5 {[%emt 0:00:32]} 35. Re3 {[%emt 0:00:32]} Ra5 {[%emt 0:00:28]} 36. a3 {[%emt 0:00:28]} Kg6 {[%emt 0:00:27]} 37. Ke4 {[%emt 0:00:36]} Re5+ {[%emt 0:00:27]} 38. Kd4 {[%emt 0:00:33]} Rxe3 {[%emt 0:00:29]} 39. Kxe3 {[%emt 0:00:26]} Kf5 {[%emt 0:00:26]} 40. Kd4 {[%emt 0:00:38]} Kg4 {[%emt 0:00:31]} 41. Kd5 {[%emt 0:00:32]} f5 {[%emt 0:00:36]} 42. Kc6 {[%emt 0:00:39]} f4 {[%emt 0:00:32]} 43. Kb7 {[%emt 0:00:28]} f3 {[%emt 0:00:27]} 44. Kxa7 {[%emt 0:00:27]} f2 {[%emt 0:00:27]} 45. Kxb6 {[%emt 0:00:26]} f1=Q {[%emt 0:00:28]} 0-1

[Event "9th RTU Rapid 2019"]
[Site "Riga"]
[Date "2019.08.04"]
[Round "7.6"]
[White "Saduakassova, Dinara"]
[Black "Kiik, Kalle"]
[Result "1-0"]
[WhiteElo "2437"]
[BlackElo "2308"]
[PlyCount "87"]
[EventDate "2019.08.05"]
[EventType "swiss"]
[EventCountry "LAT"]
[TimeControl "5400+30"]
[WhiteClock "0:04:27"]
[BlackClock "0:08:21"]

1. d4 {[%emt 1:15:23]} d5 {[%emt 1:15:23]} 2. c4 {[%emt 0:00:26]} e6 {[%emt 0:00:27]} 3. Nf3 {[%emt 0:00:26]} c5 {[%emt 0:00:27]} 4. cxd5 {[%emt 0:00:35]} exd5 {[%emt 0:00:27]} 5. g3 {[%emt 0:00:30]} Nc6 {[%emt 0:00:27]} 6. Bg2 {[%emt 0:00:28]} Nf6 {[%emt 0:00:27]} 7. O-O {[%emt 0:00:27]} Be7 {[%emt 0:00:27]} 8. Nc3 {[%emt 0:00:29]} O-O {[%emt 0:00:28]} 9. dxc5 {[%emt 0:00:29]} Bxc5 {[%emt 0:00:35]} 10. Bg5 {[%emt 0:00:29]} d4 {[%emt 0:00:28]} 11. Bxf6 {[%emt 0:01:08]} Qxf6 {[%emt 0:00:29]} 12. Ne4 {[%emt 0:00:26]} Qe7 {[%emt 0:00:34]} 13. Nxc5 {[%emt 0:00:32]} Qxc5 {[%emt 0:00:27]} 14. Rc1 {[%emt 0:00:26]} Qb6 {[%emt 0:00:36]} 15. Qd2 {[%emt 0:00:39]} Be6 {[%emt 0:00:32]} 16. b3 {[%emt 0:00:52]} Rad8 {[%emt 0:00:44]} 17. Rfd1 {[%emt 0:00:55]} h6 {[%emt 0:00:35]} 18. Qb2 {[%emt 0:01:05]} Rd7 {[%emt 0:02:04]} 19. Rd2 {[%emt 0:01:34]} Rfd8 {[%emt 0:00:41]} 20. Rcd1 {[%emt 0:00:27]} a5 {[%emt 0:00:44]} 21. h4 {[%emt 0:00:55]} Qb4 {[%emt 0:00:56]} 22. Ne1 {[%emt 0:01:09]} Bd5 {[%emt 0:03:12]} 23. Nc2 {[%emt 0:01:14]} Qb6 {[%emt 0:00:43]} 24. Nxd4 {[%emt 0:00:52]} Nxd4 {[%emt 0:02:48]} 25. Rxd4 {[%emt 0:00:39]} Be6 {[%emt 0:00:28]} 26. Rxd7 {[%emt 0:00:30]} Rxd7 {[%emt 0:00:26]} 27. Rxd7 {[%emt 0:00:27]} Bxd7 {[%emt 0:00:26]} 28. Qe5 {[%emt 0:00:34]} g6 {[%emt 0:02:51]} 29. Qb8+ {[%emt 0:00:36]} Kg7 {[%emt 0:00:26]} 30. Qxb7 {[%emt 0:00:31]} Qd4 {[%emt 0:00:30]} 31. Qd5 {[%emt 0:00:33]} Qa1+ {[%emt 0:00:27]} 32. Kh2 {[%emt 0:00:26]} Bg4 {[%emt 0:00:44]} 33. e3 {[%emt 0:01:57]} Be6 {[%emt 0:00:59]} 34. Qd4+ {[%emt 0:00:30]} Qxd4 {[%emt 0:00:27]} 35. exd4 {[%emt 0:00:26]} Kf6 {[%emt 0:00:27]} 36. Be4 {[%emt 0:00:40]} g5 {[%emt 0:00:30]} 37. hxg5+ {[%emt 0:00:31]} hxg5 {[%emt 0:00:26]} 38. Kg2 {[%emt 0:00:28]} Ke7 {[%emt 0:00:27]} 39. Kf3 {[%emt 0:00:30]} Kd6 {[%emt 0:00:27]} 40. Ke3 {[%emt 0:00:28]} Bd7 {[%emt 0:00:30]} 41. Bd3 {[%emt 0:00:29]} f6 {[%emt 0:00:33]} 42. Bc4 {[%emt 0:00:29]} Bc8 {[%emt 0:00:32]} 43. Kd2 {[%emt 0:00:33]} Bd7 {[%emt 0:00:46]} 44. Kc3 {[%emt 0:00:26]} 1-0

[Event "9th RTU Rapid 2019"]
[Site "Riga"]
[Date "2019.08.04"]
[Round "7.7"]
[White "Ioannidis, Evgenios"]
[Black "Omelja, Artem"]
[Result "0-1"]
[WhiteElo "2134"]
[BlackElo "2436"]
[PlyCount "63"]
[EventDate "2019.08.05"]
[EventType "swiss"]
[EventCountry "LAT"]
[TimeControl "5400+30"]
[WhiteClock "0:10:01"]
[BlackClock "0:02:34"]

1. d4 {[%emt 1:15:28]} d5 {[%emt 1:15:32]} 2. c4 {[%emt 0:00:27]} e6 {[%emt 0:00:27]} 3. Nc3 {[%emt 0:00:30]} Be7 {[%emt 0:00:31]} 4. cxd5 {[%emt 0:00:31]} exd5 {[%emt 0:00:27]} 5. Bf4 {[%emt 0:00:28]} c6 {[%emt 0:00:26]} 6. e3 {[%emt 0:00:33]} Bd6 {[%emt 0:00:28]} 7. Bxd6 {[%emt 0:00:31]} Qxd6 {[%emt 0:00:26]} 8. Bd3 {[%emt 0:00:27]} Ne7 {[%emt 0:00:32]} 9. Qc2 {[%emt 0:00:26]} g6 {[%emt 0:00:31]} 10. f3 {[%emt 0:01:05]} a6 {[%emt 0:01:10]} 11. O-O-O {[%emt 0:00:42]} Be6 {[%emt 0:00:32]} 12. Nge2 {[%emt 0:01:10]} Nd7 {[%emt 0:00:27]} 13. e4 {[%emt 0:00:39]} b5 {[%emt 0:00:43]} 14. Kb1 {[%emt 0:01:01]} Nb6 {[%emt 0:00:31]} 15. Nc1 {[%emt 0:01:50]} Nc4 {[%emt 0:00:51]} 16. Rhe1 {[%emt 0:00:41]} Qxh2 {[%emt 0:00:31]} 17. exd5 {[%emt 0:00:26]} cxd5 {[%emt 0:00:33]} 18. Nb3 {[%emt 0:00:26]} Qd6 {[%emt 0:00:46]} 19. Nc5 {[%emt 0:00:33]} O-O {[%emt 0:01:03]} 20. g4 {[%emt 0:00:44]} Nc6 {[%emt 0:00:32]} 21. Bxc4 {[%emt 0:00:38]} bxc4 {[%emt 0:00:35]} 22. Qd2 {[%emt 0:00:41]} Ra7 {[%emt 0:00:41]} 23. Re2 {[%emt 0:00:55]} Bc8 {[%emt 0:00:35]} 24. Rde1 {[%emt 0:01:53]} Re7 {[%emt 0:01:52]} 25. Rxe7 {[%emt 0:04:37]} Nxe7 {[%emt 0:00:29]} 26. Rxe7 {[%emt 0:01:06]} Qxe7 {[%emt 0:00:27]} 27. Nxd5 {[%emt 0:00:27]} Qd8 {[%emt 0:00:55]} 28. Ne3 {[%emt 0:01:20]} f5 {[%emt 0:00:29]} 29. gxf5 {[%emt 0:01:05]} Bxf5+ {[%emt 0:00:29]} 30. Ka1 {[%emt 0:00:26]} Qg5 {[%emt 0:00:59]} 31. a3 {[%emt 0:01:10]} Qg1+ {[%emt 0:00:59]} 32. Ka2 {[%emt 0:00:03]} 0-1

[Event "9th RTU Rapid 2019"]
[Site "Riga"]
[Date "2019.08.04"]
[Round "7.8"]
[White "Bulmaga, Irina"]
[Black "Gukesh D"]
[Result "0-1"]
[WhiteElo "2434"]
[BlackElo "1683"]
[PlyCount "84"]
[EventDate "2019.08.05"]
[EventType "swiss"]
[EventCountry "LAT"]
[TimeControl "5400+30"]
[WhiteClock "0:00:44"]
[BlackClock "0:00:22"]

1. e4 {[%emt 1:15:22]} g6 {[%emt 1:15:36]} 2. d4 {[%emt 0:00:27]} Bg7 {[%emt 0:00:32]} 3. Nf3 {[%emt 0:00:28]} d6 {[%emt 0:00:27]} 4. Nc3 {[%emt 0:00:28]} a6 {[%emt 0:00:28]} 5. a4 {[%emt 0:00:26]} Nf6 {[%emt 0:00:34]} 6. Be2 {[%emt 0:00:34]} O-O {[%emt 0:00:31]} 7. h3 {[%emt 0:00:30]} Nc6 {[%emt 0:00:49]} 8. O-O {[%emt 0:00:47]} e5 {[%emt 0:00:53]} 9. dxe5 {[%emt 0:00:43]} dxe5 {[%emt 0:00:38]} 10. Bg5 {[%emt 0:00:37]} Be6 {[%emt 0:00:56]} 11. Qc1 {[%emt 0:01:29]} Nd4 {[%emt 0:02:40]} 12. Nxe5 {[%emt 0:02:14]} Qd6 {[%emt 0:02:00]} 13. Bxf6 {[%emt 0:00:52]} Bxf6 {[%emt 0:00:30]} 14. Nf3 {[%emt 0:00:48]} Rfe8 {[%emt 0:02:43]} 15. Nxd4 {[%emt 0:01:45]} Bxd4 {[%emt 0:00:27]} 16. Bf3 {[%emt 0:03:41]} Qe5 {[%emt 0:01:48]} 17. Rb1 {[%emt 0:01:01]} Rad8 {[%emt 0:01:44]} 18. Nd5 {[%emt 0:02:15]} c6 {[%emt 0:00:59]} 19. Ne3 {[%emt 0:02:16]} Ba2 {[%emt 0:00:50]} 20. Ng4 {[%emt 0:00:26]} Qg7 {[%emt 0:00:58]} 21. c3 {[%emt 0:00:50]} Bxb1 {[%emt 0:00:49]} 22. cxd4 {[%emt 0:00:26]} Bxe4 {[%emt 0:01:12]} 23. Bxe4 {[%emt 0:00:54]} Rxe4 {[%emt 0:00:27]} 24. Qg5 {[%emt 0:00:26]} Rexd4 {[%emt 0:01:30]} 25. Kh2 {[%emt 0:00:53]} Kh8 {[%emt 0:01:28]} 26. Re1 {[%emt 0:00:35]} R4d5 {[%emt 0:00:37]} 27. Re5 {[%emt 0:01:51]} h6 {[%emt 0:01:01]} 28. Nxh6 {[%emt 0:00:42]} Qxe5+ {[%emt 0:00:35]} 29. Qxe5+ {[%emt 0:00:29]} Rxe5 {[%emt 0:00:26]} 30. Nxf7+ {[%emt 0:00:26]} Kg7 {[%emt 0:00:25]} 31. Nxe5 {[%emt 0:00:28]} Rd4 {[%emt 0:00:34]} 32. a5 {[%emt 0:00:33]} Ra4 {[%emt 0:00:35]} 33. Kg3 {[%emt 0:00:31]} Rxa5 {[%emt 0:00:26]} 34. f4 {[%emt 0:00:31]} Rb5 {[%emt 0:00:28]} 35. Kh4 {[%emt 0:00:28]} Rxb2 {[%emt 0:00:28]} 36. g4 {[%emt 0:00:26]} a5 {[%emt 0:00:31]} 37. Kg5 {[%emt 0:00:30]} Rb5 {[%emt 0:00:29]} 38. h4 {[%emt 0:00:34]} a4 {[%emt 0:00:26]} 39. h5 {[%emt 0:00:26]} gxh5 {[%emt 0:00:27]} 40. gxh5 {[%emt 0:00:32]} a3 {[%emt 0:00:26]} 41. h6+ {[%emt 0:00:27]} Kh7 {[%emt 0:00:26]} 42. Kf6 {[%emt 0:00:31]} a2 {[%emt 0:00:27]} 0-1

[Event "9th RTU Rapid 2019"]
[Site "Riga"]
[Date "2019.08.04"]
[Round "7.9"]
[White "Wagner, Dennis"]
[Black "Radkov, Bazhen D."]
[Result "1-0"]
[WhiteElo "2473"]
[BlackElo "2133"]
[PlyCount "57"]
[EventDate "2019.08.05"]
[EventType "swiss"]
[EventCountry "LAT"]
[TimeControl "5400+30"]
[WhiteClock "0:00:40"]
[BlackClock "0:05:37"]

1. d4 {[%emt 1:15:22]} Nf6 {[%emt 1:15:35]} 2. c4 {[%emt 0:00:26]} g6 {[%emt 0:00:26]} 3. Nc3 {[%emt 0:00:27]} Bg7 {[%emt 0:00:28]} 4. e4 {[%emt 0:00:28]} d6 {[%emt 0:00:26]} 5. Nf3 {[%emt 0:00:28]} O-O {[%emt 0:00:28]} 6. Be2 {[%emt 0:00:27]} Bg4 {[%emt 0:00:27]} 7. Be3 {[%emt 0:00:27]} Nfd7 {[%emt 0:00:26]} 8. h4 {[%emt 0:00:26]} e5 {[%emt 0:01:06]} 9. d5 {[%emt 0:00:27]} a5 {[%emt 0:00:53]} 10. h5 {[%emt 0:00:50]} Bxh5 {[%emt 0:02:43]} 11. Qd2 {[%emt 0:00:53]} Na6 {[%emt 0:00:46]} 12. Bh6 {[%emt 0:00:49]} Nf6 {[%emt 0:01:42]} 13. Ng1 {[%emt 0:02:38]} Bxe2 {[%emt 0:01:39]} 14. Ngxe2 {[%emt 0:00:31]} Nc5 {[%emt 0:00:51]} 15. Bxg7 {[%emt 0:01:41]} Kxg7 {[%emt 0:00:28]} 16. Qh6+ {[%emt 0:00:27]} Kh8 {[%emt 0:00:50]} 17. O-O-O {[%emt 0:00:38]} Rg8 {[%emt 0:01:01]} 18. g4 {[%emt 0:00:35]} Rg7 {[%emt 0:01:03]} 19. f3 {[%emt 0:00:27]} a4 {[%emt 0:01:07]} 20. Kb1 {[%emt 0:00:48]} a3 {[%emt 0:00:39]} 21. b3 {[%emt 0:00:27]} Ra6 {[%emt 0:01:17]} 22. Ng3 {[%emt 0:00:44]} Rb6 {[%emt 0:01:29]} 23. Nb5 {[%emt 0:00:36]} Qd7 {[%emt 0:01:19]} 24. Rh2 {[%emt 0:02:33]} Nxg4 {[%emt 0:02:48]} 25. fxg4 {[%emt 0:00:37]} Qxg4 {[%emt 0:00:26]} 26. Rg1 {[%emt 0:01:45]} Qf3 {[%emt 0:01:30]} 27. Nh5 {[%emt 0:01:50]} Rg8 {[%emt 0:00:40]} 28. Nf6 {[%emt 0:00:36]} Qd3+ {[%emt 0:00:47]} 29. Ka1 {[%emt 0:01:30]} 1-0

[Event "9th RTU Rapid 2019"]
[Site "Riga"]
[Date "2019.08.04"]
[Round "7.10"]
[White "Afanasiev, Vadim"]
[Black "Suleymenov, Alisher"]
[Result "0-1"]
[WhiteElo "2241"]
[BlackElo "2348"]
[PlyCount "73"]
[EventDate "2019.08.05"]
[EventType "swiss"]
[EventCountry "LAT"]
[TimeControl "5400+30"]
[WhiteClock "0:00:09"]
[BlackClock "0:00:12"]

1. d4 {[%emt 1:15:23]} e6 {[%emt 1:15:26]} 2. c4 {[%emt 0:00:30]} b6 {[%emt 0:00:26]} 3. Nc3 {[%emt 0:00:51]} Bb7 {[%emt 0:00:28]} 4. a3 {[%emt 0:01:01]} f5 {[%emt 0:00:28]} 5. d5 {[%emt 0:00:49]} Nf6 {[%emt 0:00:30]} 6. g3 {[%emt 0:00:39]} Bd6 {[%emt 0:00:51]} 7. Bg2 {[%emt 0:00:42]} O-O {[%emt 0:00:30]} 8. Nh3 {[%emt 0:00:42]} Be5 {[%emt 0:01:47]} 9. Nb5 {[%emt 0:02:56]} Na6 {[%emt 0:05:11]} 10. f4 {[%emt 0:02:00]} Bd6 {[%emt 0:00:31]} 11. Nxd6 {[%emt 0:00:32]} cxd6 {[%emt 0:00:27]} 12. Nf2 {[%emt 0:02:09]} Qe7 {[%emt 0:02:33]} 13. O-O {[%emt 0:00:51]} exd5 {[%emt 0:01:35]} 14. b4 {[%emt 0:02:04]} Ne4 {[%emt 0:01:17]} 15. Nxe4 {[%emt 0:00:57]} dxe4 {[%emt 0:00:56]} 16. Bb2 {[%emt 0:00:39]} Nc7 {[%emt 0:01:07]} 17. Qd4 {[%emt 0:01:14]} d5 {[%emt 0:01:29]} 18. Qe5 {[%emt 0:02:51]} Qxe5 {[%emt 0:00:58]} 19. Bxe5 {[%emt 0:00:27]} Ne8 {[%emt 0:01:12]} 20. cxd5 {[%emt 0:00:52]} Bxd5 {[%emt 0:00:02]} 21. Rfd1 Be6 {[%emt 0:00:58]} 22. g4 {[%emt 0:01:47]} fxg4 {[%emt 0:01:20]} 23. Bxe4 {[%emt 0:00:27]} Rc8 {[%emt 0:00:29]} 24. e3 {[%emt 0:01:05]} Nf6 {[%emt 0:00:38]} 25. Bb7 {[%emt 0:00:39]} Rc2 {[%emt 0:00:39]} 26. Rac1 {[%emt 0:00:28]} Re2 {[%emt 0:00:32]} 27. Rc3 {[%emt 0:00:36]} h5 {[%emt 0:00:35]} 28. Ba6 {[%emt 0:00:26]} Ra2 {[%emt 0:00:31]} 29. Rc7 {[%emt 0:00:45]} Nd5 {[%emt 0:00:45]} 30. Rxa7 {[%emt 0:00:28]} Nxe3 {[%emt 0:00:30]} 31. Rc1 {[%emt 0:00:31]} h4 {[%emt 0:00:41]} 32. Bd6 {[%emt 0:00:29]} g3 {[%emt 0:00:29]} 33. hxg3 {[%emt 0:00:28]} h3 {[%emt 0:00:28]} 34. Bb7 {[%emt 0:00:30]} Re8 {[%emt 0:00:31]} 35. b5 {[%emt 0:00:30]} Ng4 {[%emt 0:00:31]} 36. Bf3 {[%emt 0:00:12]} h2+ {[%emt 0:00:04]} 37. Kh1 {[%emt 0:00:02]} 0-1